{"text_format":"1","workbook":"xlsx","n_sheets":20,"sheets":["Risk Assessment Data","R1 - Infrastructure","R2 - Access & Resupply","R3 - Community & Social","R4 - Medical","R5 - Significant Industry","R6 - Environmental","Decision Log","Charts","EXPOSEDELEMENTTYPES","HELP","OPTIONS","AUDITLOG","MAPDATA","HAZARDS","LISTS","RISKDATA","EXPOSEDELEMENTDATA","RISKTREATMENTDATA","ESRI_MAPINFO_SHEET"],"not_rendered":{"charts":1,"images":0,"macros":1,"external_links":0,"defined_names":3,"comments":0,"pivot_tables":0},"unopened":[],"bounds":{"document_bytes":16777216,"sheet_cells":100000,"rows_first":2000,"rows_last":500,"rows_between":2000,"halvings":0,"cell_chars":16384,"cell_head_chars":4096},"cells_cut":0,"cells_raw":0,"read":"whole","date_system":"1900"}

{"sheet":"Risk Assessment Data","index":0,"n_rows":6,"n_cols":10,"rows_kept":6,"cut":false,"hidden":false,"merged":[[5,7,5,8]]}
["X","QERMF RISK ASSESSMENT WORKBOOK"]
["X",{"$f":"\"Hazard: \" & RISKDATA!$B$3","v":"Hazard: "}]
["X",{"$f":"\"Event/Scenario: \" & RISKDATA!$B$2","v":"Event/Scenario: "}]
["X",{"$f":"\"Likelihood: \" & \"[AEP \" & RISKDATA!$B$8 & \"%] \" & RISKDATA!$B$5","v":"Likelihood: [AEP %] "},null,null,null,null,{"$f":"\"LDMG/DDMG: \" & RISKDATA!$B$1","v":"LDMG/DDMG: "},{"$f":"\"Author: \" & RISKDATA!$B$9","v":"Author: "}]
["X"]
["EEID","ID","Exposed Elements","Vulnerability Notes","Vulnerability","Likelihood","Existing Risk Treatments or Controls","Consequences & Overall Rating",null,"Inherent Risk"]

{"sheet":"R1 - Infrastructure","index":1,"n_rows":8,"n_cols":15,"rows_kept":8,"cut":false,"hidden":false,"merged":[[5,3,5,6]]}
["X","X","X","QERMF RISK ASSESSMENT WORKBOOK - R1: INFRASTRUCTURE"]
["X","X","X",{"$f":"\"Hazard: \" & RISKDATA!$B$3","v":"Hazard: "}]
["X","X","X",{"$f":"\"Event/Scenario: \" & RISKDATA!$B$2","v":"Event/Scenario: "}]
["X","X","X",{"$f":"\"Likelihood: \" & \"[AEP \" & RISKDATA!$B$8 & \"%] \" & RISKDATA!$B$5","v":"Likelihood: [AEP %] "},null,null,null,{"$f":"\"LDMG/DDMG: \" & RISKDATA!$B$1","v":"LDMG/DDMG: "},{"$f":"\"Author: \" & RISKDATA!$B$9","v":"Author: "}]
["X","X","X"]
["X","X","X","RISK STATEMENTS:"]
["X","X","X"]
["EEID","RTID","DLID","ID","Exposed Elements","Vulnerability Notes","Inherent Risk","Existing Treatments or Controls","Capability","Capacity","Capacity Gaps","Effectiveness","Residual Risk","Action","DL Ref"]

{"sheet":"R2 - Access & Resupply","index":2,"n_rows":8,"n_cols":15,"rows_kept":8,"cut":false,"hidden":false,"merged":[[5,3,5,6]]}
["X","X","X","QERMF RISK ASSESSMENT WORKBOOK - R2: ACCESS & RESUPPLY"]
["X","X","X",{"$f":"\"Hazard: \" & RISKDATA!$B$3","v":"Hazard: "}]
["X","X","X",{"$f":"\"Event/Scenario: \" & RISKDATA!$B$2","v":"Event/Scenario: "}]
["X","X","X",{"$f":"\"Likelihood: \" & \"[AEP \" & RISKDATA!$B$8 & \"%] \" & RISKDATA!$B$5","v":"Likelihood: [AEP %] "},null,null,null,{"$f":"\"LDMG/DDMG: \" & RISKDATA!$B$1","v":"LDMG/DDMG: "},{"$f":"\"Author: \" & RISKDATA!$B$9","v":"Author: "}]
["X","X","X"]
["X","X","X","RISK STATEMENTS:"]
["X","X","X"]
["EEID","RTID","DLID","ID","Exposed Elements","Vulnerability Notes","Inherent Risk","Existing Treatments or Controls","Capability","Capacity","Capacity Gaps","Effectiveness","Residual Risk","Action","DL Ref"]

{"sheet":"R3 - Community & Social","index":3,"n_rows":8,"n_cols":15,"rows_kept":8,"cut":false,"hidden":false,"merged":[[5,3,5,6]]}
["X","X","X","QERMF RISK ASSESSMENT WORKBOOK - R3: COMMUNITY & SOCIAL"]
["X","X","X",{"$f":"\"Hazard: \" & RISKDATA!$B$3","v":"Hazard: "}]
["X","X","X",{"$f":"\"Event/Scenario: \" & RISKDATA!$B$2","v":"Event/Scenario: "}]
["X","X","X",{"$f":"\"Likelihood: \" & \"[AEP \" & RISKDATA!$B$8 & \"%] \" & RISKDATA!$B$5","v":"Likelihood: [AEP %] "},null,null,null,{"$f":"\"LDMG/DDMG: \" & RISKDATA!$B$1","v":"LDMG/DDMG: "},{"$f":"\"Author: \" & RISKDATA!$B$9","v":"Author: "}]
["X","X","X"]
["X","X","X","RISK STATEMENTS:"]
["X","X","X"]
["EEID","RTID","DLID","ID","Exposed Elements","Vulnerability Notes","Inherent Risk","Existing Treatments or Controls","Capability","Capacity","Capacity Gaps","Effectiveness","Residual Risk","Action","DL Ref"]

{"sheet":"R4 - Medical","index":4,"n_rows":8,"n_cols":15,"rows_kept":8,"cut":false,"hidden":false,"merged":[[5,3,5,6]]}
["X","X","X","QERMF RISK ASSESSMENT WORKBOOK - R4: MEDICAL"]
["X","X","X",{"$f":"\"Hazard: \" & RISKDATA!$B$3","v":"Hazard: "}]
["X","X","X",{"$f":"\"Event/Scenario: \" & RISKDATA!$B$2","v":"Event/Scenario: "}]
["X","X","X",{"$f":"\"Likelihood: \" & \"[AEP \" & RISKDATA!$B$8 & \"%] \" & RISKDATA!$B$5","v":"Likelihood: [AEP %] "},null,null,null,{"$f":"\"LDMG/DDMG: \" & RISKDATA!$B$1","v":"LDMG/DDMG: "},{"$f":"\"Author: \" & RISKDATA!$B$9","v":"Author: "}]
["X","X","X"]
["X","X","X","RISK STATEMENTS:"]
["X","X","X"]
["EEID","RTID","DLID","ID","Exposed Elements","Vulnerability Notes","Inherent Risk","Existing Treatments or Controls","Capability","Capacity","Capacity Gaps","Effectiveness","Residual Risk","Action","DL Ref"]

{"sheet":"R5 - Significant Industry","index":5,"n_rows":8,"n_cols":15,"rows_kept":8,"cut":false,"hidden":false,"merged":[[5,3,5,6]]}
["X","X","X","QERMF RISK ASSESSMENT WORKBOOK - R5: SIGNIFICANT INFRASTRUCTURE"]
["X","X","X",{"$f":"\"Hazard: \" & RISKDATA!$B$3","v":"Hazard: "}]
["X","X","X",{"$f":"\"Event/Scenario: \" & RISKDATA!$B$2","v":"Event/Scenario: "}]
["X","X","X",{"$f":"\"Likelihood: \" & \"[AEP \" & RISKDATA!$B$8 & \"%] \" & RISKDATA!$B$5","v":"Likelihood: [AEP %] "},null,null,null,{"$f":"\"LDMG/DDMG: \" & RISKDATA!$B$1","v":"LDMG/DDMG: "},{"$f":"\"Author: \" & RISKDATA!$B$9","v":"Author: "}]
["X","X","X"]
["X","X","X","RISK STATEMENTS:"]
["X","X","X"]
["EEID","RTID","DLID","ID","Exposed Elements","Vulnerability Notes","Inherent Risk","Existing Treatments or Controls","Capability","Capacity","Capacity Gaps","Effectiveness","Residual Risk","Action","DL Ref"]

{"sheet":"R6 - Environmental","index":6,"n_rows":8,"n_cols":15,"rows_kept":8,"cut":false,"hidden":false,"merged":[[5,3,5,6]]}
["X","X","X","QERMF RISK ASSESSMENT WORKBOOK - R6: ENVIRONMENTAL"]
["X","X","X",{"$f":"\"Hazard: \" & RISKDATA!$B$3","v":"Hazard: "}]
["X","X","X",{"$f":"\"Event/Scenario: \" & RISKDATA!$B$2","v":"Event/Scenario: "}]
["X","X","X",{"$f":"\"Likelihood: \" & \"[AEP \" & RISKDATA!$B$8 & \"%] \" & RISKDATA!$B$5","v":"Likelihood: [AEP %] "},null,null,null,{"$f":"\"LDMG/DDMG: \" & RISKDATA!$B$1","v":"LDMG/DDMG: "},{"$f":"\"Author: \" & RISKDATA!$B$9","v":"Author: "}]
["X","X","X"]
["X","X","X","RISK STATEMENTS:"]
["X","X","X"]
["EEID","RTID","DLID","ID","Exposed Elements","Vulnerability Notes","Inherent Risk","Existing Treatments or Controls","Capability","Capacity","Capacity Gaps","Effectiveness","Residual Risk","Action","DL Ref"]

{"sheet":"Decision Log","index":7,"n_rows":8,"n_cols":13,"rows_kept":8,"cut":false,"hidden":false,"merged":[[5,4,5,9]]}
["X","X","X","X","QERMF RISK ASSESSMENT WORKBOOK - DECISION LOG"]
["X","X","X","X",{"$f":"\"Hazard: \" & RISKDATA!$B$3","v":"Hazard: "}]
["X","X","X","X",{"$f":"\"Event/Scenario: \" & RISKDATA!$B$2","v":"Event/Scenario: "}]
["X","X","X","X",{"$f":"\"Likelihood: \" & \"[AEP \" & RISKDATA!$B$8 & \"%] \" & RISKDATA!$B$5","v":"Likelihood: [AEP %] "},null,null,{"$f":"\"LDMG/DDMG: \" & RISKDATA!$B$1","v":"LDMG/DDMG: "},{"$f":"\"Author: \" & RISKDATA!$B$9","v":"Author: "}]
["X","X","X","X"]
["X","X","X","X"]
["X","X","X","X"]
["EEID","RTID","DLID","Reg ID","DL Ref","Action","Decision","Rationale","Decision Maker","Agreed By","Status","Decision Date","Est. Completion Date"]

{"sheet":"Charts","index":8,"n_rows":14,"n_cols":6,"rows_kept":14,"cut":false,"hidden":false,"merged":[]}
["QERMF RISK ASSESSMENT WORKBOOK - RISK TREATMENTS CHART"]
[{"$f":"\"Hazard: \" & RISKDATA!$B$3","v":"Hazard: "}]
[{"$f":"\"Event/Scenario: \" & RISKDATA!$B$2","v":"Event/Scenario: "}]
[{"$f":"\"Likelihood: \" & \"[AEP \" & RISKDATA!$B$8 & \"%] \" & RISKDATA!$B$5","v":"Likelihood: [AEP %] "},null,{"$f":"\"LDMG/DDMG: \" & RISKDATA!$B$1","v":"LDMG/DDMG: "},null,null,{"$f":"\"Author: \" & RISKDATA!$B$9","v":"Author: "}]
[]
[]
[null,"Register","Mitigate","Mitigate & Transfer","Transfer"]
[null,"Infrastructure",0,0,0]
[null,"Access & Resupply",0,0,0]
[null,"Community & Social",0,0,0]
[null,"Medical",0,0,0]
[null,"Significant Industry",0,0,0]
[null,"Environmental",0,0,0]
[null,"TOTALS",{"$f":"SUM(C8:C13)","v":0},{"$f":"SUM(D8:D13)","v":0},{"$f":"SUM(E8:E13)","v":0}]

{"sheet":"EXPOSEDELEMENTTYPES","index":9,"n_rows":44,"n_cols":13,"rows_kept":44,"cut":false,"hidden":true,"merged":[]}
["Exposed Element","Register Number","Asset Owner","Asset Name","Asset Type","Megawatt Capacity","Voltage","Construction","Function","Demographic","Pre-Code","Concern","Impact Type"]
["Power (Stations)",1,"FT","FT","PL:Renewable~Non Renewable~Other","FT","-","-","-","-","-","-","PL:Wind~Water~Fire~Heat~Other~N/A"]
["Power (Transmission)",1,"PL:Powerlink~Other","FT","PL:Power Line~Substation","-","PL:132kV~200kV~220kV~275kV~330kV~400kV~500kV","-","-","-","-","-","PL:Wind~Water~Fire~Heat~Other~N/A"]
["Power (Sub Distribution)",1,"PL:Energex~Ergon~Energy Queensland~Other","FT","PL:Power Line~Substation","-","PL:11kV~22kV~33kV~66kV~110kV~132kV","-","-","-","-","-","PL:Wind~Water~Fire~Heat~Other~N/A"]
["Communications (Telecommunications)",1,"PL:Telstra~Optus~Vodafone~Other","FT","PL:Mobile Tower~Other","-","-","-","-","-","-","-","PL:Wind~Water~Fire~Heat~Other~N/A"]
["Communications (Fibre Optic)",1,"PL:NBN~Other","FT","PL:Hub~Cabinet~Node~Fixed-Wireless Tower~Other","-","-","-","-","-","-","-","PL:Wind~Water~Fire~Heat~Other~N/A"]
["Communications (Emergency Services)",1,"-","FT","PL:Radio Tower~Other","-","-","-","-","-","-","-","PL:Wind~Water~Fire~Heat~Other~N/A"]
["Communications (Other)",1,"-","FT","FT","-","-","-","-","-","-","-","PL:Wind~Water~Fire~Heat~Other~N/A"]
["Water (Water Treatment)",1,"-","FT","PL:Treatment Plant~Other","-","-","-","-","-","-","-","PL:Wind~Water~Fire~Heat~Other~N/A"]
["Water (Reticulation)",1,"-","FT","PL:Pumping Station~Other","-","-","-","-","-","-","-","PL:Wind~Water~Fire~Heat~Other~N/A"]
["Water (Waste Water Treatment)",1,"-","FT","PL:Treatment Plant~Other","-","-","-","-","-","-","-","PL:Wind~Water~Fire~Heat~Other~N/A"]
["Water (Dams & Reservoirs)",1,"-","FT","PL:Dam~Reservoir~Tailings Dam~Other","-","-","-","-","-","-","-","PL:Wind~Water~Fire~Heat~Other~N/A"]
["Transport Infrastucture (Road & Rail)",1,"-","FT","PL:Rail Station~Rail Sidings~Bus Station~HGV Holding Areas~Other","-","-","-","-","-","-","-","PL:Wind~Water~Fire~Heat~Other~N/A"]
["Transport Infrastucture (Air)",1,"-","FT","PL:Airport~Aerodrome~Heliport~Helipad~Landing Zone~Other","-","-","-","-","-","-","-","PL:Wind~Water~Fire~Heat~Other~N/A"]
["Transport Infrastucture (Maritime)",1,"-","FT","PL:Port~Ferry~Terminal~Marina~Jetty~Other","-","-","-","-","-","-","-","PL:Wind~Water~Fire~Heat~Other~N/A"]
["Fuel Infrastructure (Gas & Oil)",1,"FT","FT","PL:Gas Pipeline~Gas Infrastructure~Oil Pipeline~Oil Infrastructure~Refineries~Other","-","-","-","-","-","-","-","PL:Wind~Water~Fire~Heat~Other~N/A"]
["Fuel Infrastructure (Bulk Fuel)",1,"-","FT","PL:Depots~Terminals~Other","-","-","-","-","-","-","-","PL:Wind~Water~Fire~Heat~Other~N/A"]
["Roads (State)",2,"-","FT","PL:Motorway~Highway~Secondary Road~Other","-","-","-","-","-","-","-","PL:Wind~Water~Fire~Heat~Other~N/A"]
["Roads (Local)",2,"-","FT","PL:Local Connector Road~Local Road~Other","-","-","-","-","-","-","-","PL:Wind~Water~Fire~Heat~Other~N/A"]
["Roads (Bridges)",2,"-","FT","PL:State Bridge~Local Bridge~Other","-","-","PL:Concrete~Timber~Other","-","-","-","-","PL:Wind~Water~Fire~Heat~Other~N/A"]
["Rail (Passenger)",2,"-","FT","PL:Electrified~Non-Electrified","-","-","-","PL:Commuter Route~Tourist Route~Other","-","-","-","PL:Wind~Water~Fire~Heat~Other~N/A"]
["Rail (Freight)",2,"-","FT","PL:Electrified~Non-Electrified","-","-","-","PL:Mining Route~Stock Transport~Resource Route~Other","-","-","-","PL:Wind~Water~Fire~Heat~Other~N/A"]
["Air (Airports/Aerodromes)",2,"-","FT","PL:International~Domestic~Defence~Landing Strip~Other","-","-","-","-","-","-","-","PL:Wind~Water~Fire~Heat~Other~N/A"]
["Air (Helipads)",2,"-","FT","PL:Designated Helipad~Emergency Services Helipad~Temporary Landing Zone~Other","-","-","-","-","-","-","-","PL:Wind~Water~Fire~Heat~Other~N/A"]
["Maritime",2,"-","FT","PL:Passenger Route~Commercial Route~Other","-","-","-","-","-","-","-","PL:Wind~Water~Fire~Heat~Other~N/A"]
["Population Centres",3,"-","FT","PL:Urban~Regional~Rural~Other","-","-","-","-","-","-","-","PL:Wind~Water~Fire~Heat~Other~N/A"]
["Demographics",3,"-","-","-","-","-","-","-","PL:Aged Population~Medically Dependant Persons~Self-care Assisted Persons~Populations not proficient in English~Socio-Economically Disadvantaged~Volunteerism~Other Vulnerable Persons","-","-","PL:Direct~Isolation~Other"]
["Community Infrastructure",3,"-","FT","PL:School~Public Hall~Community Centre~Library~Function Centre~Other","-","-","-","-","-","-","-","PL:Wind~Water~Fire~Heat~Other~N/A"]
["Centres of Governance",3,"-","FT","PL:Government House~Local Government Chambers~Disaster Coordination Centre~Town Halls~Other","-","-","-","-","-","-","-","PL:Wind~Water~Fire~Heat~Other~N/A"]
["Emergency Services",3,"-","FT","PL:QFES~Rural Fire~QPS~QAS~SES","-","-","-","-","-","-","-","PL:Wind~Water~Fire~Heat~Volunteerism~Other~N/A"]
["Building Stock",3,"-","-","PL:Residential~Commercial~Industrial~Other","-","-","-","-","-","PL:Pre-1980 Construction~Pre-1990 Asbestos Construction~N/A","-","PL:Wind~Water~Fire~Heat~Other~N/A"]
["Emergency Shelters & Places of Refuge",3,"-","FT","PL:Purpose Built Shelter~School~Public Hall~Community Centre~Other","-","-","-","-","-","-","-","PL:Wind~Water~Fire~Heat~Other~N/A"]
["Cultural Elements",3,"-","FT","PL:Area or Object of Cultural Significance~Area or Object of Religious Significance~Indigenous Sacred Site~Other","-","-","-","-","-","-","-","PL:Wind~Water~Fire~Heat~Other~N/A"]
["Hospitals",4,"-","FT","PL:Hospital~Community Clinic~Health Service~Care Centre~Other","-","-","-","-","-","-","-","PL:Wind~Water~Fire~Heat~Other~N/A"]
["Public Health",4,"-","-","-","-","-","-","-","-","-","PL:Disease~Infection~Heat Stress~Mental Health~Other","-"]
["Aged Care Facilities",4,"-","FT","PL:Public~Private~Community~Other","-","-","-","-","-","-","-","PL:Wind~Water~Fire~Heat~Other~N/A"]
["Heavy Industry & Manufacturing",5,"-","FT","PL:Mine~Quarry~Industrial Facility~Manufacturing Plant~Other","-","-","-","-","-","-","-","PL:Wind~Water~Fire~Heat~Other~N/A"]
["Transport & Logistics",5,"-","FT","PL:Industrial~Mining~Agriculture~Resupply~Other","-","-","-","-","-","-","-","PL:Wind~Water~Fire~Heat~Other~N/A"]
["Agriculture",5,"-","FT","PL:Primary Producer (Crop)~Primary Producer (Livestock)~Associated Business~Other","-","-","-","-","-","-","-","PL:Wind~Water~Fire~Heat~Other~N/A"]
["Tourism",5,"-","FT","PL:Primary Producer (Crop)~Primary Producer (Livestock)~Associated Business~Other","-","-","-","-","-","-","-","PL:Wind~Water~Fire~Heat~Other~N/A"]
["Local & Other Industries",5,"-","FT","FT","-","-","-","-","-","-","-","PL:Wind~Water~Fire~Heat~Other~N/A"]
["Waste Management",6,"-","FT","PL:Landfill~Transfer Station~Recycling Station~Processing Station~Tailings Dam~Other","-","-","-","-","-","-","-","PL:Wind~Water~Fire~Heat~Other~N/A"]
["Areas of State Environmental Significance (ASES)",6,"-","FT","PL:National Park~Protected Area~Wetland~Marine Park~Habitat Area~Other","-","-","-","-","-","-","-","PL:Wind~Water~Fire~Heat~Other~N/A"]
["Local Ecosystems or Species of Concern",6,"-","FT","PL:National Park~Protected Area~Wetland~Marine Park~Habitat Area~Other","-","-","-","-","-","-","-","PL:Wind~Water~Fire~Heat~Other~N/A"]

{"sheet":"HELP","index":10,"n_rows":12,"n_cols":2,"rows_kept":12,"cut":false,"hidden":true,"merged":[]}
["Reference","Help Text"]
["Workbook","Workbook help"]
["Edit Risk","Edit Risk help"]
["Edit Exposed Element","Edit Exposed Element help"]
["Edit Vulnerability","Edit Vulnerability help"]
["Risk Treatments or Controls List","Risk Treatments or Controls List help"]
["Edit Risk Treatments or Controls","Edit Risk Treatments or Controls help"]
["Edit Consequences","Edit Consequences help"]
["Edit Risk Statements","Edit Risk Statements help"]
["Edit Decision Log","Edit Decision Log help"]
["Finalise","Finalise Workbook help"]
["Email Selected","Email Selected help"]

{"sheet":"OPTIONS","index":11,"n_rows":8,"n_cols":3,"rows_kept":8,"cut":false,"hidden":true,"merged":[]}
["OPTION","SETTING","DESCRIPTION"]
["Admin Password",123,"Admin password"]
["Visible Sheets","Risk Assessment Data, R1 - Infrastructure, R2 - Access & Resupply, R3 - Community & Social, R4 - Medical, R5 - Significant Industry, R6 - Environmental, Decision Log, Charts","Comma separated list of sheets that are visible to non-admin users"]
["Ribbon Group Name","QERMF Risk Assessment Workbook","Ribbon group name"]
["Next EEID",1]
["Next RTID",1]
["Next DLID",1]
["Copy Status","Master"]

{"sheet":"AUDITLOG","index":12,"n_rows":1,"n_cols":9,"rows_kept":1,"cut":false,"hidden":true,"merged":[]}
["Date/Time","Computer","User","Filename","Event","EEID","RTID","DLID","Data"]

{"sheet":"MAPDATA","index":13,"n_rows":1,"n_cols":5,"rows_kept":1,"cut":false,"hidden":true,"merged":[]}
["Exposed Element","Vulnerability Notes","Inherent Risk Rating","Latitude","Longitude"]

{"sheet":"HAZARDS","index":14,"n_rows":18,"n_cols":3,"rows_kept":18,"cut":false,"hidden":true,"merged":[]}
["Hazard Type","Hazard","COLOUR CODE"]
["Natural","Severe Thunderstorm Event","PP"]
["Natural","Low Pressure System – East Coast Low","DB"]
["Natural","Low Pressure System – Trough/Tropical Depression","DB"]
["Natural","Tropical Cyclone – Tropical Low","DB"]
["Natural","Tropical Cyclone – Category 1 - 2","DB"]
["Natural","Severe Tropical Cyclone – Category 3 - 5","DB"]
["Natural","Bushfire","RD"]
["Natural","Heatwave","OR"]
["Natural","Drought","OR"]
["Geophysical","Earthquake","BR"]
["Geophysical","Tsunami","LB"]
["Socionatural","Climate Change","GR"]
["Socionatural","Environmental Degradation","GR"]
["Anthropogenic","Societal","YL"]
["Anthropogenic","Environmental Impact","YL"]
["Anthropogenic","Hazardous Materials","YL"]
["Anthropogenic","Transportation","YL"]

{"sheet":"LISTS","index":15,"n_rows":7,"n_cols":7,"rows_kept":7,"cut":false,"hidden":true,"merged":[]}
["Likelihood","Vulnerability","Consequence","Treatment Controls","Control Effectiveness","Action","Decision Log Status"]
["To be confirmed","To be confirmed","Insignificant","BCP","To be confirmed","To be confirmed","To be confirmed"]
["Rare","Very Low","Minor","DM Plan","Fully Effective","Accept","Accepted"]
["Unlikely","Low","Moderate","Mitigation Strategy","Substantially Effective","Mitigate","Rejected"]
["Possible","Moderate","Major","Physical Infrastructure","Partially Effective","Transfer","In Progress"]
["Likely","High","Catastrophic","Redundancy","Largely Ineffective","Mitigate & Transfer","Finalised"]
["Almost Certain","Extreme",null,"Other","Totally Ineffective"]

{"sheet":"RISKDATA","index":16,"n_rows":11,"n_cols":2,"rows_kept":11,"cut":false,"hidden":true,"merged":[]}
["LDMG/DDMG:"]
["Event/Scenario:"]
["Hazard:"]
["Likelihood Level:"]
["Likelihood:"]
["AEP Years:"]
["AEP Events:"]
["AEP Percent:"]
["Author:"]
["Version:",0]
["Date Finalised:"]

{"sheet":"EXPOSEDELEMENTDATA","index":17,"n_rows":1,"n_cols":24,"rows_kept":1,"cut":false,"hidden":true,"merged":[]}
["EEID","Register","Version","Sequence","Properties","Two Point Lat/Long","Latitude","Longitude","Latitude To","Longitude To","Vulnerability Notes","Vulnerability Level","Vulnerability","Consequences","Con Level - People","Con Level - Financial","Con Level - Community","Con Level - Public","Con Level - Environment","Consequence Risk Level","Consequence Risk","Inherent Risk Rating","Risk Treatments","AddUpd"]

{"sheet":"RISKTREATMENTDATA","index":18,"n_rows":1,"n_cols":14,"rows_kept":1,"cut":false,"hidden":true,"merged":[]}
["RTID","EEID","DLID","Sequence","Treatment Type","Agency","Details","Capability","Capacity","Capacity Gaps","Effectiveness","Residual Risk Rating","Action","AddUpd"]

{"sheet":"ESRI_MAPINFO_SHEET","index":19,"n_rows":0,"n_cols":0,"rows_kept":0,"cut":false,"hidden":true,"merged":[]}